[Event "52nd Rilton Cup 2024-25"]
[Site "Stockholm"]
[Date "2025.01.05"]
[Round "9.18"]
[White "Sorensen, Hampus"]
[Black "Logdahl, Harald"]
[Result "1-0"]
[ECO "A89"]
[WhiteElo "2424"]
[BlackElo "2299"]
[Annotator "TA"]
[PlyCount "99"]
[EventDate "2024.12.23"]
[EventType "swiss"]
[EventCountry "SWE"]
[SourceTitle "playchess.com"]
[Source "ChessBase"]
[SourceQuality "1"]
[TimeControl "40/5400+30:1800+30"]

{[%evp 19,99,44,70,62,65,58,47,50,50,68,78,60,113,89,128,133,154,135,177,160,294,314,350,185,195,184,174,190,304,293,457,457,673,687,736,588,603,603,631,630,584,451,598,560,591,584,637,651,742,742,728,716,828,820,798,808,1347,4149,29980,1302,29978,29979,29975,29974,4133,2696,1860,1557,29980,29956,5289,1474,1224,905,29980,29982,29982,29979,29979,29980,29980,29981]} 1. d4 {[%emt 0:00:13]} f5 {[%emt 0:00:41]} 2. Nf3 {[%emt 0:00:22]} Nf6 {[%emt 0:00:09]} 3. g3 {[%emt 0:00:19]} g6 {[%emt 0:00:09]} 4. Bg2 {[%emt 0:00:24]} Bg7 {[%emt 0:00:09]} 5. O-O {[%emt 0:00:17]} O-O {[%emt 0:00:10]} 6. c4 {[%emt 0:00:14]} d6 {[%emt 0:00:06]} 7. Nc3 {[%emt 0:00:10]} Nc6 {[%emt 0:00:09]} 8. d5 {[%emt 0:00:59]} Ne5 {[%emt 0:00:08]} 9. Nxe5 {[%emt 0:00:48]} dxe5 {[%emt 0:00:06]} 10. Qb3 {[%emt 0:00:23]} h6 {[%emt 0:00:09]} 11. e4 {[%emt 0:08:58]} f4 {[%emt 0:08:23]} 12. gxf4 {[%emt 0:00:21]} exf4 {[%emt 0:02:34]} 13. Bxf4 {[%emt 0:01:06]} Nxe4 $1 {[%emt 0:03:20]} 14. Bxc7 {[%emt 0:00:47]} Qxc7 {[%emt 0:00:28]} 15. Nxe4 {[%emt 0:00:05]} (15. Bxe4 Qf4 16. Qc2 Bh3 $15) 15... Qf4 {[%emt 0:09:27]} ({Black should try} 15... Qb6 $14) 16. Rae1 {[%emt 0:15:56]} Kh8 {[%emt 0:09:14]} 17. Ng3 {[%emt 0:07:56]} Qf6 {[%emt 0:01:39]} 18. Re3 {[%emt 0:02:55] White is more active.} Qxb2 {[%emt 0:07:37]} 19. Rxe7 {[%emt 0:03:44] Black must now prevent Qe3.} Qf6 {[%emt 0:01:59]} (19... Qxb3 $16 20. axb3 Bf6) 20. Qe3 $18 {[%emt 0:01:26]} h5 {[%emt 0:08:52]} 21. Re8 {[%emt 0:01:10]} (21. c5 $142) 21... Bd7 {[%emt 0:02:33]} 22. Rxa8 {[%emt 0:03:45]} Rxa8 {[%emt 0:00:45]} 23. Ne4 {[%emt 0:01:49]} Qb6 {[%emt 0:11:03]} (23... Qd4 $142 24. Nd6 Qxe3 25. fxe3 b6) 24. c5 {[%emt 0:01:08]} Qa5 {[%emt 0:00:38]} (24... Qb4 $142 25. a3 Qd4) 25. Nd6 {[%emt 0:03:21]} Bb5 {[%emt 0:16:25]} (25... Qa4 $142 26. Nxb7 Bb5) 26. Rb1 {[%emt 0:08:15]} a6 {[%emt 0:03:29]} 27. Qe4 {[%emt 0:08:25]} Kh7 {[%emt 0:02:35]} 28. a4 {[%emt 0:02:06]} (28. Nxb7 Qxa2 29. Re1 Rf8 $14) 28... Qxa4 {[%emt 0:04:55]} 29. Qxa4 {[%emt 0:00:09]} ({Not} 29. Nxb7 Qa2 30. Nd6 Rf8 31. Nxb5 Qxf2+ 32. Kh1 Rf4 $11 (32... Qxc5 33. d6 $11)) 29... Bxa4 {[%emt 0:00:03][%cal Bb5a4,Ba4c2,Bc2f5][%mdl 32]} 30. Nxb7 {[%emt 0:00:07]} Bc2 {[%emt 0:02:31]} 31. Rc1 {[%emt 0:00:58]} Bf5 {[%emt 0:00:08]} 32. d6 {[%emt 0:00:29][%cal Bd5d6,Bd6d7][%mdl 32]} a5 {[%emt 0:01:15][%cal Ba6a5,Ba5a4,Ba4a3][%mdl 32]} 33. c6 {[%emt 0:00:46]} a4 {[%emt 0:00:19]} 34. d7 {[%emt 0:01:11]} a3 {[%emt 0:01:39]} 35. Bd5 {[%emt 0:00:37]} Bf6 {[%emt 0:02:03]} 36. c7 {[%emt 0:12:26]} Bxd7 {[%emt 0:00:17]} 37. Nc5 $1 {[%emt 0:00:02][%csl LRa8,LRd7][%cal Oc5d7]} Bb2 {[%emt 0:02:13]} 38. Nxd7 {[%emt 0:01:02]} Bxc1 {[%emt 0:00:29][%mdl 4096] Endgame KRB-KBN} 39. Nb8 {[%emt 0:00:30]} (39. Nf6+ $142 Kg7 40. Bxa8 a2 41. c8=Q (41. c8=B $2 {perishes.} Kxf6 42. Bcb7 a1=Q $19) 41... a1=Q 42. Qg8+ Kxf6 43. Qh8+ Ke6 44. Qxa1) 39... Bf4 {[%emt 0:00:36]} 40. c8=Q {[%emt 0:00:41]} (40. c8=R a2 (40... Rxb8 $2 41. Rc3 $17) 41. Bxa2 Kh6 $15 (41... Rxa2 42. Nd7 $11) (41... Rxb8 42. Rxb8 Bxb8 43. Kg2 $11)) 40... Rxb8 {[%emt 0:00:13]} 41. Qd7+ {[%emt 0:29:35]} Kh6 {[%emt 0:01:10]} 42. Qf7 {[%emt 0:00:00]} Be5 {[%emt 0:02:00]} 43. Qe6 {[%emt 0:00:00][%cal Od5e4]} Bd4 {[%emt 0:04:00]} 44. Qe4 {[%emt 0:00:00]} Rb4 {[%emt 0:01:28]} 45. Qf4+ {[%emt 0:00:00]} Kh7 {[%emt 0:01:07]} 46. Kg2 {[%emt 0:00:00] White threatens Qf8 and mate.} Ra4 {[%emt 0:01:37]} 47. Ba2 {[%emt 0:00:00]} Rb4 {[%emt 0:00:18]} 48. Qd6 {[%emt 0:00:00]} Rb2 {[%emt 0:00:54]} 49. Qxd4 {[%emt 0:00:00]} Rxa2 {[%emt 0:00:07]} 50. Qa7+ {[%emt 0:00:00]} 1-0